fUST/lending_fUST_20250624
["ID","MTS","AMOUNT","RATE_DAILY","PERIOD"]
[367312122,1750744243671,-1119.92,0.00019178,2]
[367312123,1750744243682,-754.41,0.00019178,2]
[367312125,1750744243694,-519.23,0.00019178,2]
[367312126,1750744243705,-460.0,0.00019178,2]
[367312128,1750744243717,-460.0,0.00019178,2]
[367312130,1750744243728,-1361.3,0.00019178,2]
[367312131,1750744243739,-1057.02,0.00019178,2]
[367312132,1750744243751,-460.0,0.00019178,2]
[367312133,1750744243763,-460.0,0.00019178,2]
[367312134,1750744243775,-3063.13,0.00019178,2]
[367312135,1750744243786,-559.78462286,0.00019178,2]
[367312136,1750744243797,-460.0,0.00019178,2]
[367312137,1750744243809,-460.0,0.00019178,2]
[367312138,1750744243821,-460.0,0.00019178,2]
[367312139,1750744243833,-460.0,0.00019178,2]
[367312140,1750744243845,-460.0,0.00019178,2]
[367312141,1750744243856,-460.0,0.00019178,2]
[367312143,1750744243867,-460.0,0.00019178,2]
[367312144,1750744243879,-460.0,0.00019178,2]
[367312145,1750744243892,-711.2,0.00019178,2]
[367312146,1750744243904,-1980.97,0.00019178,2]
[367312147,1750744243918,-460.0,0.00019178,2]
[367312148,1750744243929,-460.0,0.00019178,2]
[367312149,1750744243940,-460.0,0.00019178,2]
[367312150,1750744243952,-460.0,0.00019178,2]
[367312151,1750744243963,-460.0,0.00019178,2]
[367312152,1750744243974,-844.41,0.00019178,2]
[367312153,1750744243985,-1782.0,0.00019178,2]
[367312154,1750744243998,-460.0,0.00019178,2]
[367312155,1750744244010,-697.57,0.00019178,2]
[367312156,1750744244022,-471.02349585,0.00019178,2]
[367312157,1750744244034,-402.58129094,0.00019178,2]
[367312158,1750744244046,-460.0,0.00019178,2]
[367312159,1750744244059,-424.03476174,0.00019178,2]
[367312160,1750744244072,-1810.54,0.00019178,2]
[367312161,1750744244085,-460.0,0.00019178,2]
[367312162,1750744244098,-284.62934788,0.00019178,2]
[367312163,1750744244110,-656.18,0.00019178,2]
[367312164,1750744244121,-342.32390117,0.00019178,2]
[367312165,1750744244131,-560.37,0.00019178,2]
[367312166,1750744244140,-452.59293587,0.00019178,2]
[367312167,1750744244149,-500.0,0.00019178,2]
[367312168,1750744244157,-1000.01,0.00019178,2]
[367312169,1750744244167,-1544.85,0.00019178,2]
[367312170,1750744244176,-460.0,0.00019178,2]
[367312171,1750744244185,-443.41053,0.00019178,2]
[367312172,1750744244195,-2238.43097018,0.00019352,2]
[367312173,1750744244204,-460.0,0.00019452,2]
[367312174,1750744244213,-331.3828315,0.00019452,2]
[367312175,1750744244222,-460.0,0.00019452,2]
[367312176,1750744244231,-460.0,0.00019452,2]
[367312177,1750744244241,-460.0,0.00019452,2]
[367312178,1750744244251,-460.0,0.00019452,2]
[367312179,1750744244260,-460.0,0.00019452,2]
[367312180,1750744244442,-460.0,0.00019452,2]
[367312181,1750744244459,-464.79938646,0.00019452,2]
[367312182,1750744244470,-228.86087569,0.00019452,2]
[367312183,1750744244479,-460.0,0.00019452,2]
[367312184,1750744244488,-460.0,0.00019452,2]
[367312185,1750744244498,-426.34965842,0.00019452,2]
[367312186,1750744244507,-430.0,0.00019452,2]
[367312187,1750744244516,-460.0,0.00019452,2]
[367312188,1750744244525,-167.19264588,0.00019452,2]
[367312189,1750744244536,-424.0461632,0.00019452,2]
[367312190,1750744244547,-460.0,0.00019452,2]
[367312191,1750744244556,-460.0,0.00019452,2]
[367312192,1750744244566,-460.0,0.00019452,2]
[367312193,1750744244575,-460.0,0.00019452,2]
[367312194,1750744244585,-460.0,0.00019452,2]
[367312195,1750744244594,-657.92,0.00019452,2]
[367312196,1750744244603,-345.61231649,0.00019452,2]
[367312197,1750744244613,-409.80859155,0.00019452,2]
[367312198,1750744244622,-460.0,0.00019452,2]
[367312199,1750744244631,-460.0,0.00019452,2]
[367312200,1750744244640,-468.04,0.00019452,2]
[367312201,1750744244649,-460.0,0.00019452,2]
[367312202,1750744244659,-371.57291602,0.00019452,2]
[367312203,1750744244668,-460.0,0.00019452,2]
[367312204,1750744244678,-460.0,0.00019452,2]
[367312205,1750744244687,-460.0,0.00019452,2]
[367312206,1750744244696,-460.0,0.00019452,2]
[367312207,1750744244706,-460.0,0.00019452,2]
[367312208,1750744244715,-460.0,0.00019452,2]
[367312209,1750744244725,-460.0,0.00019452,2]
[367312210,1750744244735,-438.57042864,0.00019452,2]
[367312211,1750744244744,-460.0,0.00019452,2]
[367312212,1750744244754,-460.0,0.00019452,2]
[367312213,1750744244763,-460.0,0.00019452,2]
[367312214,1750744244772,-460.0,0.00019452,2]
[367312215,1750744244782,-460.0,0.00019452,2]
[367312216,1750744244791,-460.0,0.00019452,2]
[367312217,1750744244800,-460.0,0.00019452,2]
[367312218,1750744244809,-460.0,0.00019452,2]
[367312219,1750744244818,-460.0,0.00019452,2]
[367312220,1750744244833,-460.0,0.00019452,2]
[367312221,1750744244842,-490.56175889,0.00019452,2]
[367312222,1750744244851,-460.0,0.00019452,2]
[367312223,1750744244860,-460.0,0.00019452,2]
[367312224,1750744244870,-460.0,0.00019452,2]
[367312225,1750744244880,-460.0,0.00019452,2]
[367312226,1750744244889,-460.0,0.00019452,2]
[367312227,1750744244898,-495.98546658,0.00019452,2]
[367312228,1750744244911,-460.0,0.00019452,2]
[367312229,1750744244923,-460.0,0.00019452,2]
[367312230,1750744244934,-460.0,0.00019452,2]
[367312231,1750744244943,-460.0,0.00019452,2]
[367312232,1750744244953,-460.0,0.00019452,2]
[367312233,1750744244962,-460.0,0.00019452,2]
[367312234,1750744244971,-460.0,0.00019452,2]
[367312235,1750744244980,-460.0,0.00019452,2]
[367312236,1750744244989,-606.52,0.00019452,2]
[367312237,1750744244998,-460.0,0.00019452,2]
[367312238,1750744245007,-460.0,0.00019452,2]
[367312239,1750744245016,-460.0,0.00019452,2]
[367312240,1750744245026,-496.92454574,0.00019452,2]
[367312241,1750744245035,-460.0,0.00019452,2]
[367312242,1750744245044,-404.5425236,0.00019452,2]
[367312243,1750744245053,-460.0,0.00019452,2]
[367312244,1750744245062,-460.0,0.00019452,2]
[367312245,1750744245072,-228.40784857,0.00019452,2]
[367312246,1750744245084,-460.0,0.00019452,2]
[367312247,1750744245096,-460.0,0.00019452,2]
[367312248,1750744245106,-245.9579736,0.00019452,2]
[367312249,1750744245117,-348.98118321,0.00019452,2]
[367312250,1750744245127,-460.0,0.00019452,2]
[367312251,1750744245137,-460.0,0.00019452,2]
[367312252,1750744245149,-460.0,0.00019452,2]
[367312253,1750744245159,-460.0,0.00019452,2]
[367312254,1750744245169,-622.23,0.00019452,2]
[367312255,1750744245178,-178.89348176,0.00019452,2]
[367312256,1750744245187,-460.0,0.00019452,2]
[367312257,1750744245197,-460.0,0.00019452,2]
[367312258,1750744245207,-460.0,0.00019452,2]
[367312259,1750744245216,-447.06430385,0.00019452,2]
[367312260,1750744245225,-460.0,0.00019452,2]
[367312261,1750744245235,-460.0,0.00019452,2]
[367312262,1750744245245,-460.0,0.00019452,2]
[367312263,1750744245254,-417.48198895,0.00019452,2]
[367312264,1750744245264,-460.0,0.00019452,2]
[367312265,1750744245275,-460.0,0.00019452,2]
[367312266,1750744245286,-430.0,0.00019452,2]
[367312267,1750744245297,-460.0,0.00019452,2]
[367312268,1750744245307,-460.0,0.00019452,2]
[367312269,1750744245318,-460.0,0.00019452,2]
[367312270,1750744245328,-460.0,0.00019452,2]
[367312271,1750744245337,-460.0,0.00019452,2]
[367312272,1750744245347,-460.0,0.00019452,2]
[367312273,1750744245357,-460.0,0.00019452,2]
[367312274,1750744245366,-824.0,0.00019452,2]
[367312275,1750744245375,-460.0,0.00019452,2]
[367312276,1750744245384,-460.0,0.00019452,2]
[367312277,1750744245393,-451.20349884,0.00019452,2]
[367312278,1750744245402,-460.0,0.00019452,2]
[367312279,1750744245411,-615.53,0.00019452,2]
[367312280,1750744245420,-466.03999046,0.00019452,2]
[367312281,1750744245429,-474.95382324,0.00019452,2]
[367312282,1750744245438,-570.36,0.00019452,2]
[367312283,1750744245447,-460.0,0.00019452,2]
[367312284,1750744245456,-460.0,0.00019452,2]
[367312285,1750744245465,-1755.32,0.00019452,2]
[367312286,1750744245474,-460.0,0.00019452,2]
[367312287,1750744245483,-460.0,0.00019452,2]
[367312288,1750744245492,-460.0,0.00019452,2]
[367312289,1750744245502,-460.0,0.00019452,2]
[367312290,1750744245511,-558.04924793,0.00019452,2]
[367312291,1750744245520,-460.0,0.00019452,2]
[367312292,1750744245530,-589.45,0.00019452,2]
[367312293,1750744245539,-636.14,0.00019452,2]
[367312294,1750744245549,-460.0,0.00019452,2]
[367312295,1750744245559,-522.4,0.00019452,2]
[367312296,1750744245568,-460.0,0.00019452,2]
[367312297,1750744245577,-627.41,0.00019452,2]
[367312298,1750744245586,-519.61467478,0.00019452,2]
[367312299,1750744245595,-460.0,0.00019452,2]
[367312300,1750744245605,-459.3748151,0.00019452,2]
[367312301,1750744245614,-1651.46,0.00019452,2]
[367312302,1750744245624,-460.0,0.00019452,2]
[367312303,1750744245633,-460.0,0.00019452,2]
[367312304,1750744245643,-391.40575744,0.00019452,2]
[367312305,1750744245652,-460.0,0.00019452,2]
[367312306,1750744245661,-460.0,0.00019452,2]
[367312307,1750744245671,-460.0,0.00019452,2]
[367312308,1750744245680,-1505.15,0.00019452,2]
[367312309,1750744245689,-236.87,0.00019452,2]
[367312310,1750744245699,-340.54151083,0.00019452,2]
[367312311,1750744245708,-725.84,0.00019452,2]
[367312312,1750744245718,-460.0,0.00019452,2]
[367312313,1750744245727,-461.69333702,0.00019452,2]
[367312314,1750744245736,-460.0,0.00019452,2]
[367312315,1750744245746,-460.0,0.00019452,2]
[367312316,1750744245756,-460.0,0.00019452,2]
[367312317,1750744245765,-1438.84,0.00019452,2]
[367312318,1750744245775,-708.34,0.00019452,2]
[367312319,1750744245784,-681.62,0.00019452,2]
[367312320,1750744245793,-460.0,0.00019452,2]
[367312321,1750744245803,-1250.52,0.00019452,2]
[367312322,1750744245812,-4742.02,0.00019452,2]
[367312323,1750744245822,-460.0,0.00019452,2]
[367312324,1750744245831,-463.60057648,0.00019452,2]
[367312325,1750744245840,-460.0,0.00019452,2]
[367312326,1750744245849,-460.0,0.00019452,2]
[367312327,1750744245859,-1236.54,0.00019452,2]
[367312328,1750744245868,-460.0,0.00019452,2]
[367312329,1750744245878,-776.2,0.00019452,2]
[367312330,1750744245887,-2602.0,0.00019452,2]
[367312331,1750744245896,-556.00665143,0.00019452,2]
[367312332,1750744245905,-460.0,0.00019452,2]
[367312333,1750744245914,-460.0,0.00019452,2]
[367312334,1750744245924,-460.0,0.00019452,2]
[367312335,1750744245933,-829.16,0.00019452,2]
[367312336,1750744245943,-460.0,0.00019452,2]
[367312337,1750744245953,-704.45,0.00019452,2]
[367312338,1750744245962,-460.0,0.00019452,2]
[367312339,1750744245972,-425.64473825,0.00019452,2]
[367312340,1750744245982,-477.44,0.00019452,2]
[367312341,1750744245991,-369.68938424,0.00019452,2]
[367312342,1750744246000,-1119.92,0.00019452,2]
[367312343,1750744246010,-754.41,0.00019452,2]
[367312344,1750744246019,-235.6083463,0.00019452,2]
[367312345,1750744246029,-519.23,0.00019452,2]
[367312347,1750744246038,-460.0,0.00019452,2]
[367312348,1750744246048,-1361.3,0.00019452,2]
[367312349,1750744246057,-1057.02,0.00019452,2]
[367312350,1750744246067,-460.0,0.00019452,2]
[367312351,1750744246075,-460.0,0.00019452,2]
[367312352,1750744246085,-3063.13,0.00019452,2]
[367312353,1750744246094,-460.0,0.00019452,2]
[367312354,1750744246104,-263.4333544,0.00019452,2]
[367312355,1750744246113,-460.0,0.00019452,2]
[367312356,1750744246122,-460.0,0.00019452,2]
[367312357,1750744246132,-460.0,0.00019452,2]
[367312358,1750744246141,-711.2,0.00019452,2]
[367312359,1750744246149,-1980.97,0.00019452,2]
[367312360,1750744246159,-460.0,0.00019452,2]
[367312361,1750744246168,-315.53326734,0.00019452,2]
[367312366,1750744246486,-144.46673266,0.00019452,2]
[367312367,1750744246496,-460.0,0.00019452,2]
[367312368,1750744246505,-460.0,0.00019452,2]
[367312369,1750744246515,-460.0,0.00019452,2]
[367312370,1750744246525,-844.41,0.00019452,2]
[367312371,1750744246534,-1412.58667888,0.00019452,2]
[367312399,1750744247525,-0.24074825,0.00019452,2]
[367312400,1750744247536,-369.17257287,0.00019452,2]
[367312401,1750744247546,-460.0,0.00019452,2]
[367312402,1750744247555,-697.57,0.00019452,2]
[367312403,1750744247564,-1810.54,0.00019452,2]
[367312404,1750744247574,-460.0,0.00019452,2]
[367312405,1750744247583,-656.18,0.00019452,2]
[367312406,1750744247592,-560.37,0.00019452,2]
[367312407,1750744247601,-1000.01,0.00019452,2]
[367312408,1750744247611,-1544.85,0.00019452,2]
[367312409,1750744247620,-443.55345392,0.00019452,2]
[367312410,1750744247630,-213.66798275,0.00019504,2]
[367312411,1750744247639,-425.14181427,0.00019504,2]
[367312412,1750744247765,-160.0,0.00019504,2]
[367312413,1750744247775,-836.80226758,0.00019504,2]
[367312414,1750744247784,-160.0,0.00019504,2]
[367312415,1750744247794,-846.68469334,0.00019504,2]
[367312416,1750744247803,-230.20892031,0.00019504,2]
[367312417,1750744247812,-5651.76653055,0.00019504,2]
[367312418,1750744247826,-2023.49606329,0.00019504,2]
[367312419,1750744255676,165.0,0.00019,3]
[367312420,1750744256334,165.0,0.00019,3]
[367312421,1750744279386,280.43214497,0.000189,2]
[367312422,1750744286756,165.0,0.00019,3]
[367312424,1750744315546,165.0,0.00019,3]
[367312425,1750744316276,165.0,0.00019,3]
[367312426,1750744316692,165.0,0.00019,3]
[367312428,1750744330875,165.0,0.00019,3]
[367312429,1750744331307,165.0,0.00019,3]
[367312430,1750744331632,165.0,0.00019,3]
[367312433,1750744344682,165.0,0.00019,4]
[367312434,1750744345171,165.0,0.00019,4]
[367312436,1750744346002,165.0,0.00019,4]
[367312437,1750744354582,165.0,0.00019,4]
[367312438,1750744362780,186.95476332,0.000189,2]
[367312439,1750744365964,154.29701303,0.00019,4]
[367312441,1750744387042,1273.1668,0.00026121,60]
[367312443,1750744394277,1813.243272,0.00024,30]
[367312445,1750744468750,4911.53645669,0.00018358,2]
[367312446,1750744468772,17448.68477931,0.00018358,2]
[367312447,1750744580551,227.48155181,0.000189,2]
[367312448,1750744663883,151.65436787,0.000189,2]
[367312449,1750744694775,24900.0,0.00018233,2]
[367312450,1750744735373,422.13770339,0.00019052,2]
[367312451,1750744776505,800.0,0.00018869,2]
[367312452,1750744846504,16050.04159762,0.00018233,2]
[367312453,1750744846534,13590.59262378,0.00018233,2]
[367312454,1750744881804,322.24716795,0.000189,2]
[367312455,1750744891910,809.0,0.00018964,2]
[367312456,1750744894200,809.0,0.00018781,2]
[367312457,1750744895789,9033.75,0.00026113,60]
[367312458,1750744914077,809.0,0.00018924,2]
[367312459,1750744920932,809.0,0.00018965,2]
[367312460,1750744926325,809.0,0.00018841,2]
[367312461,1750744936354,809.0,0.00018995,2]
[367312462,1750744938659,809.0,0.00018547,2]
[367312463,1750744944245,809.0,0.00018506,2]
[367312464,1750744946946,809.0,0.00018562,2]
[367312465,1750744967415,214.8314453,0.000189,2]
[367312466,1750745011013,409.0,0.0002,120]
[367312467,1750745077967,-300.0,0.00019148,2]
[367312468,1750745077993,-521.30795858,0.00019148,2]
[367312469,1750745078017,-521.30795858,0.00019148,2]
[367312470,1750745078041,-521.30795858,0.00019148,2]
[367312471,1750745078063,-521.30795858,0.00019148,2]
[367312472,1750745078089,-521.30795858,0.00019148,2]
[367312473,1750745078113,-521.30795858,0.00019148,2]
[367312474,1750745078135,-521.30795858,0.00019148,2]
[367312475,1750745078160,-521.30795858,0.00019148,2]
[367312476,1750745078183,-521.30795858,0.00019148,2]
[367312477,1750745078207,-521.30795858,0.00019148,2]
[367312478,1750745078234,-521.30795858,0.00019148,2]
[367312479,1750745078258,-521.30795858,0.00019148,2]
[367312480,1750745078281,-521.30795858,0.00019148,2]
[367312481,1750745078305,-521.30795858,0.00019148,2]
[367312482,1750745078327,-362.71180395,0.00019148,2]
[367312483,1750745078348,-500.0,0.00019148,2]
[367312484,1750745078370,-500.0,0.00019148,2]
[367312485,1750745078392,-500.0,0.00019148,2]
[367312486,1750745078414,-500.0,0.00019148,2]
[367312487,1750745078437,-500.0,0.00019148,2]
[367312488,1750745078457,-232.86618676,0.00019148,2]
[367312489,1750745078481,-306.11058917,0.00019148,2]
[367312490,1750745093238,352.23563619,0.00019043,2]
[367312492,1750745103044,569.785718,0.00013699,2]
[367312493,1750745129522,-300.0,0.00019147,2]
[367312494,1750745129547,-300.0,0.00019147,2]
[367312495,1750745129570,-175.0,0.00019147,2]
[367312496,1750745129594,-1200.0,0.00019147,2]
[367312497,1750745129616,-193.88941083,0.00019148,2]
[367312498,1750745129640,-500.0,0.00019148,2]
[367312499,1750745129665,-379.17741553,0.00019148,2]
[367312500,1750745129688,-500.0,0.00019148,2]
[367312501,1750745129714,-500.0,0.00019148,2]
[367312502,1750745129736,-500.0,0.00019148,2]
[367312503,1750745129759,-500.0,0.00019148,2]
[367312504,1750745129781,-500.0,0.00019148,2]
[367312505,1750745129803,-500.0,0.00019148,2]
[367312506,1750745129825,-500.0,0.00019148,2]
[367312507,1750745129848,-500.0,0.00019148,2]
[367312508,1750745129869,-500.0,0.00019148,2]
[367312509,1750745129891,-272.37484092,0.00019148,2]
[367312510,1750745129914,-179.55833272,0.00019148,2]
[367312511,1750745165313,2631.51170693,0.000191,2]
[367312512,1750745182922,150.0,0.000189,2]
[367312513,1750745212262,187.73860198,0.000191,2]
[367312514,1750745218590,165.31326518,0.00018586,2]
[367312515,1750745239123,-300.0,0.00019146,2]
[367312516,1750745239145,-242.25754341,0.00019147,2]
[367312517,1750745242004,1315.953223,0.00018301,2]
[367312518,1750745255865,170.710784,0.00018161,2]
[367312520,1750745268900,150.0,0.000189,2]
[367312524,1750745297650,500.0,0.00019068,2]
[367312525,1750745301603,-157.29771641,0.00019146,2]
[367312526,1750745306551,1208.45327857,0.000191,2]
[367312527,1750745313022,-142.70228359,0.00019146,2]
[367312528,1750745313054,-22.96371641,0.00019146,2]
[367312530,1750745325669,369.37049051,0.00019047,2]
[367312531,1750745345667,-170.46100001,0.00019145,2]
[367312532,1750745351580,414.04737875,0.00018837,2]
[367312533,1750745354163,-202.69938057,0.00019112,2]
[367312534,1750745355822,160.7540394,0.00019047,2]
[367312537,1750745419091,329.28653044,0.00018572,2]
[367312580,1750745431941,-211.34799818,0.00019112,2]
[367312582,1750745431951,-179.94115871,0.00019145,2]
[367312584,1750745431963,-120.05884129,0.00019145,2]
[367312586,1750745431972,-300.0,0.00019145,2]
[367312588,1750745431981,-157.29771641,0.00019146,2]
[367312590,1750745431990,-500.0,0.00019146,2]
[367312592,1750745432000,-500.0,0.00019146,2]
[367312594,1750745432010,-500.0,0.00019146,2]
[367312596,1750745432019,-500.0,0.00019146,2]
[367312598,1750745432028,-500.0,0.00019146,2]
[367312600,1750745432037,-368.71484605,0.00019146,2]
[367312602,1750745432047,-500.0,0.00019146,2]
[367312604,1750745432056,-500.0,0.00019146,2]
[367312606,1750745432066,-427.02096653,0.00019146,2]
[367312608,1750745432075,-500.0,0.00019146,2]
[367312610,1750745432084,-500.0,0.00019146,2]
[367312612,1750745432094,-500.0,0.00019146,2]
[367312614,1750745432103,-175.01936269,0.00019146,2]
[367312616,1750745432112,-295.83802353,0.00019146,2]
[367312618,1750745432122,-500.0,0.00019146,2]
[367312620,1750745432131,-500.0,0.00019146,2]
[367312622,1750745432140,-458.64273568,0.00019146,2]
[367312624,1750745432150,-500.0,0.00019146,2]
[367312626,1750745432159,-500.0,0.00019146,2]
[367312628,1750745432168,-500.0,0.00019146,2]
[367312630,1750745432178,-500.0,0.00019146,2]
[367312632,1750745432187,-500.0,0.00019146,2]
[367312634,1750745432196,-500.0,0.00019146,2]
[367312636,1750745432206,-500.0,0.00019146,2]
[367312638,1750745432215,-500.0,0.00019146,2]
[367312640,1750745432224,-548.72702455,0.00019146,2]
[367312642,1750745432234,-500.0,0.00019146,2]
[367312644,1750745432243,-500.0,0.00019146,2]
[367312646,1750745432253,-503.61693296,0.00019146,2]
[367312648,1750745432265,-500.0,0.00019146,2]
[367312650,1750745432274,-509.25330648,0.00019146,2]
[367312652,1750745432283,-500.0,0.00019146,2]
[367312654,1750745432292,-500.0,0.00019146,2]
[367312656,1750745432304,-500.0,0.00019146,2]
[367312658,1750745432313,-500.0,0.00019146,2]
[367312660,1750745432323,-500.0,0.00019146,2]
[367312662,1750745432334,-500.0,0.00019146,2]
[367312664,1750745432343,-500.0,0.00019146,2]
[367312666,1750745432353,-500.0,0.00019146,2]
[367312668,1750745432362,-500.0,0.00019146,2]
[367312670,1750745432371,-500.0,0.00019146,2]
[367312672,1750745432380,-500.0,0.00019146,2]
[367312674,1750745432389,-500.0,0.00019146,2]
[367312676,1750745432398,-500.0,0.00019146,2]
[367312678,1750745432407,-500.0,0.00019146,2]
[367312680,1750745432416,-500.0,0.00019146,2]
[367312681,1750745432425,-500.0,0.00019146,2]
[367312683,1750745432434,-500.0,0.00019146,2]
[367312685,1750745432443,-500.0,0.00019146,2]
[367312687,1750745432452,-500.0,0.00019146,2]
[367312689,1750745432461,-500.0,0.00019146,2]
[367312691,1750745432471,-272.73392267,0.00019146,2]
[367312692,1750745432481,-500.0,0.00019146,2]
[367312693,1750745432491,-500.0,0.00019146,2]
[367312694,1750745432502,-500.0,0.00019146,2]
[367312695,1750745432512,-500.0,0.00019146,2]
[367312696,1750745432521,-500.0,0.00019146,2]
[367312697,1750745432531,-500.0,0.00019146,2]
[367312698,1750745432540,-500.0,0.00019146,2]
[367312699,1750745432550,-500.0,0.00019146,2]
[367312700,1750745432559,-500.0,0.00019146,2]
[367312701,1750745432568,-500.0,0.00019146,2]
[367312702,1750745432577,-415.93991243,0.00019146,2]
[367312703,1750745432587,-500.0,0.00019146,2]
[367312704,1750745432596,-500.0,0.00019146,2]
[367312705,1750745432605,-500.0,0.00019146,2]
[367312706,1750745432615,-500.0,0.00019146,2]
[367312707,1750745432624,-500.0,0.00019146,2]
[367312708,1750745432633,-500.0,0.00019146,2]
[367312709,1750745432643,-500.0,0.00019146,2]
[367312710,1750745432652,-500.0,0.00019146,2]
[367312711,1750745432661,-500.0,0.00019146,2]
[367312712,1750745432671,-500.0,0.00019146,2]
[367312713,1750745432680,-500.0,0.00019146,2]
[367312714,1750745432689,-500.0,0.00019146,2]
[367312715,1750745432698,-500.0,0.00019146,2]
[367312716,1750745432707,-57.74245659,0.00019147,2]
[367312717,1750745432716,-12530.9146222,0.00019147,2]
[367312718,1750745432726,-155.0,0.00019148,2]
[367312719,1750745432736,-809.0,0.00019161,2]
[367312720,1750745432745,-1134.33650498,0.00019166,2]
[367312721,1750745432759,-71.66479761,0.00019166,2]
[367312722,1750745432768,-153.42673917,0.00019166,2]
[367312723,1750745432778,-151.0,0.00019166,2]
[367312724,1750745432787,-21535.40754118,0.00019166,2]
[367312725,1750745432796,-500.0,0.00019166,2]
[367312726,1750745432806,-221.79211539,0.00019166,2]
[367312727,1750745432815,-207.4,0.00019166,2]
[367312728,1750745432824,-362.94,0.00019168,3]
[367312729,1750745432834,-190.35,0.00019177,2]
[367312730,1750745432843,-460.0,0.00019178,2]
[367312731,1750745432852,-460.0,0.00019178,2]
[367312732,1750745432861,-432.79407276,0.00019178,2]
[367312733,1750745432870,-460.0,0.00019178,2]
[367312734,1750745432880,-463.49939731,0.00019178,2]
[367312735,1750745432889,-460.0,0.00019178,2]
[367312736,1750745432898,-492.34,0.00019178,2]
[367312737,1750745432907,-401.75313407,0.00019178,2]
[367312738,1750745432916,-460.0,0.00019178,2]
[367312739,1750745432925,-460.0,0.00019178,2]
[367312740,1750745432934,-460.0,0.00019178,2]
[367312741,1750745432943,-437.49212001,0.00019178,2]
[367312742,1750745432952,-460.0,0.00019178,2]
[367312743,1750745432961,-460.0,0.00019178,2]
[367312744,1750745432970,-431.87996863,0.00019178,2]
[367312745,1750745432980,-460.0,0.00019178,2]
[367312746,1750745432990,-276.12521588,0.00019178,2]
[367312747,1750745433000,-460.0,0.00019178,2]
[367312748,1750745433009,-224.54770474,0.00019178,2]
[367312749,1750745433019,-460.0,0.00019178,2]
[367312750,1750745433028,-460.0,0.00019178,2]
[367312751,1750745433037,-460.0,0.00019178,2]
[367312752,1750745433047,-460.0,0.00019178,2]
[367312753,1750745433056,-460.0,0.00019178,2]
[367312754,1750745433066,-460.0,0.00019178,2]
[367312755,1750745433075,-460.0,0.00019178,2]
[367312756,1750745433085,-432.37558514,0.00019178,2]
[367312757,1750745433094,-460.0,0.00019178,2]
[367312758,1750745433103,-460.0,0.00019178,2]
[367312759,1750745433112,-460.0,0.00019178,2]
[367312760,1750745433122,-460.0,0.00019178,2]
[367312761,1750745433132,-460.0,0.00019178,2]
[367312762,1750745433141,-240.0,0.00019178,2]
[367312763,1750745433151,-460.0,0.00019178,2]
[367312764,1750745433160,-460.0,0.00019178,2]
[367312765,1750745433297,-233.12817313,0.00019178,2]
[367312766,1750745433307,-460.0,0.00019178,2]
[367312767,1750745433316,-460.0,0.00019178,2]
[367312768,1750745433326,-460.0,0.00019178,2]
[367312769,1750745433336,-460.0,0.00019178,2]
[367312770,1750745433345,-249.79784152,0.00019178,2]